[Event "Prague Festival-Futures 2022"]
[Site "Prague"]
[Date "2022.06.14"]
[Round "6.4"]
[White "Peglau, Charis"]
[Black "Sowinski, Pawel"]
[Result "0-1"]
[ECO "A30"]
[WhiteElo "2008"]
[BlackElo "2060"]
[Annotator "NA RC"]
[PlyCount "154"]
[EventDate "2022.06.07"]
[EventType "tourn"]
[EventCountry "CZE"]
[SourceTitle "playchess.com"]
[Source "ChessBase"]
[SourceQuality "1"]
[TimeControl "40/5400+30:1800+30"]

1. c4 {[%emt 0:00:02]} Nf6 {[%emt 0:01:09]} 2. Nf3 {[%emt 0:00:42]} e6 {[%emt 0:00:42]} 3. g3 {[%emt 0:00:48]} b6 {[%emt 0:02:13]} 4. Bg2 {[%emt 0:00:34]} Bb7 {[%emt 0:00:02]} 5. O-O {[%emt 0:00:26]} Be7 {[%emt 0:00:02]} 6. Nc3 {[%emt 0:00:25]} O-O {[%emt 0:01:05]} 7. b3 {[%emt 0:00:29]} c5 {[%emt 0:00:42]} 8. Bb2 {[%emt 0:00:15]} d6 {[%emt 0:06:07]} 9. e3 {[%emt 0:03:25]} Nbd7 {[%emt 0:00:20]} 10. Qe2 {[%emt 0:01:18]} a6 {[%emt 0:02:13]} 11. Rfd1 {[%emt 0:00:46]} Qc7 {[%emt 0:01:04]} 12. Rac1 {[%emt 0:00:26]} Rac8 {[%emt 0:01:49]} 13. d4 {[%emt 0:02:04]} Qb8 {[%emt 0:00:46]} 14. e4 {[%emt 0:04:31]} cxd4 {[%emt 0:00:41]} 15. Nxd4 {[%emt 0:00:15]} Rfe8 {[%emt 0:05:53]} 16. Nc2 {[%emt 0:12:42]} Qa8 {[%emt 0:07:53]} 17. f4 {[%emt 0:04:51]} h5 {[%emt 0:06:42]} 18. Re1 {[%emt 0:02:50]} d5 {[%emt 0:15:48]} 19. Kh1 {[%emt 0:11:50]} dxe4 {[%emt 0:07:38]} 20. Nxe4 {[%emt 0:07:41]} b5 {[%emt 0:04:32]} 21. Nxf6+ {[%emt 0:05:44]} Nxf6 {[%emt 0:04:15]} 22. Ne3 {[%emt 0:01:26]} Bc5 {[%emt 0:01:31]} 23. Bxb7 {[%emt 0:12:34]} Qxb7+ {[%emt 0:00:01]} 24. Ng2 {[%emt 0:00:51]} Ng4 {[%emt 0:10:07]} 25. h3 {[%emt 0:00:15]} Ne3 {[%emt 0:03:01]} 26. Kh2 {[%emt 0:00:43]} Nxg2 {[%emt 0:00:02]} 27. Qxg2 {[%emt 0:00:37]} Qxg2+ {[%emt 0:00:02]} 28. Kxg2 {[%emt 0:00:09]} Red8 {[%emt 0:00:11]} 29. Re2 {[%emt 0:03:18]} Bd4 {[%emt 0:00:16]} 30. Bxd4 {[%emt 0:03:39]} Rxd4 {[%emt 0:00:07]} 31. Rec2 {[%emt 0:06:24]} bxc4 {[%emt 0:02:06]} 32. bxc4 {[%emt 0:00:08]} Rc5 {[%emt 0:00:04]} 33. Kf3 {[%emt 0:04:07]} Rd3+ {[%emt 0:00:27]} 34. Ke4 {[%emt 0:06:59]} Rxg3 {[%emt 0:00:05]} 35. Kd4 {[%emt 0:00:06]} Rc6 {[%emt 0:05:52]} 36. c5 {[%emt 0:00:25]} Kf8 {[%emt 0:01:20]} 37. Rb1 {[%emt 0:00:35]} Ke8 {[%emt 0:02:00]} 38. Rb6 {[%emt 0:02:21]} Kd7 {[%emt 0:00:01]} 39. Rb7+ {[%emt 0:00:16]} Rc7 {[%emt 0:02:31]} 40. Rb6 {[%emt 0:00:00]} Rc6 {[%emt 0:00:00]} 41. Rb7+ {[%emt 0:01:11]} Rc7 {[%emt 0:06:35]} 42. Rb6 {[%emt 0:00:06]} g5 {[%emt 0:20:03]} 43. fxg5 Rxg5 {[%emt 0:00:01]} 44. c6+ {[%emt 0:08:09]} Kd6 {[%emt 0:00:01]} 45. Rxa6 {[%emt 0:00:33]} Rg3 {[%emt 0:00:28]} 46. a4 {[%emt 0:01:59]} f5 {[%emt 0:02:22]} 47. Re2 {[%emt 0:03:34]} Rg1 {[%emt 0:03:36]} 48. Kc4 {[%emt 0:04:49]} Rc1+ {[%emt 0:00:07]} 49. Kb5 {[%emt 0:00:05]} Rc5+ {[%emt 0:00:04]} 50. Kb4 {[%emt 0:00:10]} R5xc6 {[%emt 0:00:14]} 51. Rxc6+ {[%emt 0:04:35]} Rxc6 {[%emt 0:00:01]} 52. a5 {[%emt 0:00:19]} e5 {[%emt 0:01:37]} 53. Rg2 {[%emt 0:00:32]} e4 {[%emt 0:00:36]} 54. a6 {[%emt 0:03:02]} Ke5 {[%emt 0:04:51]} 55. Ra2 {[%emt 0:00:10]} Rc8 {[%emt 0:02:48]} 56. a7 {[%emt 0:00:07]} Ra8 {[%emt 0:01:30]} 57. Kc3 {[%emt 0:00:34]} Kf4 {[%emt 0:00:04]} 58. Kd2 {[%emt 0:00:28]} Kf3 {[%emt 0:00:28]} 59. Ke1 {[%emt 0:03:34]} e3 {[%emt 0:00:07]} 60. Ra3 {[%emt 0:01:05]} f4 {[%emt 0:00:18]} 61. h4 {[%emt 0:00:57]} Kg2 {[%emt 0:02:30]} 62. Ra2+ {[%emt 0:00:53]} Kg3 {[%emt 0:00:03]} 63. Ke2 {[%emt 0:02:03]} f3+ {[%emt 0:01:03]} 64. Kxe3 {[%emt 0:00:03]} f2 {[%emt 0:00:01]} 65. Ra1 {[%emt 0:00:12]} Rxa7 {[%emt 0:01:04]} 66. Rxa7 {[%emt 0:00:41]} f1=Q {[%emt 0:00:08]} 67. Ra2 {[%emt 0:01:29]} Qf4+ {[%emt 0:00:06]} 68. Kd3 {[%emt 0:00:07]} Qxh4 {[%emt 0:00:05]} 69. Re2 {[%emt 0:00:16]} Qd8+ {[%emt 0:00:06]} 70. Kc2 {[%emt 0:00:07]} Qd5 {[%emt 0:00:08]} 71. Re3+ {[%emt 0:00:30]} Kg4 {[%emt 0:00:01]} 72. Rd3 {[%emt 0:00:15]} Qe4 {[%emt 0:00:01]} 73. Kd2 {[%emt 0:00:05]} h4 {[%emt 0:00:08]} 74. Re3 {[%emt 0:00:12]} Qc4 {[%emt 0:00:08]} 75. Ke1 {[%emt 0:00:15]} h3 {[%emt 0:00:09]} 76. Kf2 {[%emt 0:00:10]} Qf4+ {[%emt 0:00:05]} 77. Ke2 {[%emt 0:00:03]} h2 {[%emt 0:00:13]} 0-1

[Event "Prague Festival-Futures 2022"]
[Site "Prague"]
[Date "2022.06.14"]
[Round "6.5"]
[White "Tolmacevs, Artjoms"]
[Black "Balint, Peter"]
[Result "1-0"]
[ECO "C50"]
[WhiteElo "2087"]
[BlackElo "2097"]
[Annotator "NA RC"]
[PlyCount "55"]
[EventDate "2022.06.07"]
[EventType "tourn"]
[EventCountry "CZE"]
[SourceTitle "playchess.com"]
[Source "ChessBase"]
[SourceQuality "1"]
[TimeControl "40/5400+30:1800+30"]

1. e4 {[%emt 0:00:01]} e5 {[%emt 0:00:07]} 2. Nf3 {[%emt 0:00:04]} Nc6 {[%emt 0:00:02]} 3. Bc4 {[%emt 0:00:07]} Bc5 {[%emt 0:00:06]} 4. O-O {[%emt 0:00:45]} Nf6 {[%emt 0:00:17]} 5. d4 {[%emt 0:01:42]} Bxd4 {[%emt 0:08:00]} 6. Nxd4 {[%emt 0:00:08]} Nxd4 {[%emt 0:08:39]} 7. f4 {[%emt 0:13:07]} Nc6 {[%emt 0:13:09]} 8. Bxf7+ {[%emt 0:04:05]} Kxf7 {[%emt 0:07:51]} 9. fxe5 {[%emt 0:00:06]} Nxe5 {[%emt 0:00:26]} 10. Qd5+ {[%emt 0:00:06]} Kf8 {[%emt 0:00:43]} 11. Qxe5 {[%emt 0:00:06]} d6 {[%emt 0:01:20]} 12. Qd4 {[%emt 0:09:53]} Be6 {[%emt 0:10:38]} 13. Bg5 {[%emt 0:03:59]} Kf7 {[%emt 0:01:01]} 14. Nc3 {[%emt 0:01:45]} h6 {[%emt 0:03:13]} 15. Bxf6 {[%emt 0:00:23]} gxf6 {[%emt 0:00:05]} 16. Nd5 {[%emt 0:00:03]} Bxd5 {[%emt 0:00:07]} 17. exd5 {[%emt 0:00:25]} Rg8 {[%emt 0:05:01]} 18. Rae1 {[%emt 0:01:01]} Rg6 {[%emt 0:00:43]} 19. Re6 {[%emt 0:01:42]} Rc8 {[%emt 0:04:42]} 20. Qe4 {[%emt 0:02:46]} c6 {[%emt 0:03:36]} 21. Re1 {[%emt 0:07:34]} Rc7 {[%emt 0:01:50]} 22. Qf5 {[%emt 0:12:50]} Kg7 {[%emt 0:08:37]} 23. Re8 {[%emt 0:00:44]} Qd7 {[%emt 0:00:41]} 24. Rg8+ {[%emt 0:00:05]} Kxg8 {[%emt 0:00:13]} 25. Qxg6+ {[%emt 0:00:07]} Kf8 {[%emt 0:00:06]} 26. Qxf6+ {[%emt 0:00:09]} Kg8 {[%emt 0:00:15]} 27. Qg6+ {[%emt 0:00:06]} Kf8 {[%emt 0:00:12]} 28. Rf1+ {[%emt 0:00:05]} 1-0

[Event "Prague Festival-Futures 2022"]
[Site "Prague"]
[Date "2022.06.15"]
[Round "7.1"]
[White "Balint, Peter"]
[Black "Zelbova, Lada"]
[Result "1-0"]
[ECO "B32"]
[WhiteElo "2097"]
[BlackElo "1967"]
[Annotator "NA RC"]
[PlyCount "85"]
[EventDate "2022.06.07"]
[EventType "tourn"]
[EventCountry "CZE"]
[SourceTitle "playchess.com"]
[Source "ChessBase"]
[SourceQuality "1"]
[TimeControl "40/5400+30:1800+30"]

1. e4 {[%emt 0:00:02]} c5 {[%emt 0:00:06]} 2. Nf3 {[%emt 0:00:03]} Nc6 {[%emt 0:00:08]} 3. d4 {[%emt 0:00:07]} cxd4 {[%emt 0:00:05]} 4. Nxd4 {[%emt 0:00:04]} e5 {[%emt 0:00:07]} 5. Nb5 {[%emt 0:00:09]} d6 {[%emt 0:00:08]} 6. c4 {[%emt 0:02:52]} Be7 {[%emt 0:06:59]} 7. N1c3 {[%emt 0:07:12]} a6 {[%emt 0:00:56]} 8. Na3 {[%emt 0:00:05]} Nf6 {[%emt 0:00:49]} 9. Be2 {[%emt 0:11:36]} O-O {[%emt 0:01:34]} 10. Be3 {[%emt 0:00:45]} Be6 {[%emt 0:02:01]} 11. O-O {[%emt 0:00:26]} Rc8 {[%emt 0:02:28]} 12. Rc1 {[%emt 0:10:36]} Re8 {[%emt 0:14:41]} 13. Re1 {[%emt 0:07:13]} h6 {[%emt 0:03:13]} 14. Bf3 {[%emt 0:06:18]} Nh7 {[%emt 0:08:33]} 15. Nd5 {[%emt 0:03:32]} Bxd5 {[%emt 0:01:13]} 16. cxd5 {[%emt 0:00:11]} Nd4 {[%emt 0:01:43]} 17. Rxc8 {[%emt 0:03:19]} Qxc8 {[%emt 0:03:54]} 18. Bxd4 {[%emt 0:02:05]} exd4 {[%emt 0:00:07]} 19. Qxd4 {[%emt 0:01:28]} Bf6 {[%emt 0:09:09]} 20. Qb4 {[%emt 0:05:41]} Ng5 {[%emt 0:04:39]} 21. Bd1 {[%emt 0:01:33]} a5 {[%emt 0:13:15]} 22. Qb5 {[%emt 0:02:02]} Re7 {[%emt 0:04:19]} 23. Qc4 {[%emt 0:06:25]} Rc7 {[%emt 0:01:02]} 24. Qe2 {[%emt 0:01:36]} Rc1 {[%emt 0:02:30]} 25. h4 {[%emt 0:10:54]} Nh7 {[%emt 0:00:02]} 26. b3 {[%emt 0:00:15]} Ra1 {[%emt 0:00:41]} 27. Nc4 {[%emt 0:00:26]} Qc5 {[%emt 0:00:43]} 28. a4 {[%emt 0:04:56]} Bxh4 {[%emt 0:01:37]} 29. Rf1 {[%emt 0:08:02]} Bf6 {[%emt 0:03:04]} 30. Bc2 {[%emt 0:00:43]} Ra2 {[%emt 0:01:48]} 31. e5 {[%emt 0:00:14]} Rxc2 {[%emt 0:01:41]} 32. Qxc2 {[%emt 0:00:04]} Bxe5 {[%emt 0:00:05]} 33. Qd2 {[%emt 0:00:25]} f6 {[%emt 0:07:42]} 34. Nxe5 {[%emt 0:01:34]} fxe5 {[%emt 0:00:06]} 35. Rc1 {[%emt 0:00:07]} Qb6 {[%emt 0:00:42]} 36. Rc8+ {[%emt 0:00:15]} Kf7 {[%emt 0:00:41]} 37. Qc2 {[%emt 0:00:11]} Nf6 {[%emt 0:00:29]} 38. Qc7+ {[%emt 0:00:07]} Qxc7 {[%emt 0:00:06]} 39. Rxc7+ {[%emt 0:00:04]} Kg6 {[%emt 0:01:18]} 40. Rxb7 {[%emt 0:00:00]} Kf5 {[%emt 0:00:00]} 41. b4 {[%emt 0:01:05]} axb4 {[%emt 0:05:23]} 42. a5 {[%emt 0:00:08]} Nxd5 {[%emt 0:01:22]} 43. a6 {[%emt 0:00:04]} 1-0

[Event "Prague Festival-Futures 2022"]
[Site "Prague"]
[Date "2022.06.15"]
[Round "7.2"]
[White "Sowinski, Pawel"]
[Black "Bouska, Jiri"]
[Result "1/2-1/2"]
[ECO "B33"]
[WhiteElo "2060"]
[BlackElo "2117"]
[Annotator "TA"]
[PlyCount "191"]
[EventDate "2022.06.07"]
[EventType "tourn"]
[EventCountry "CZE"]
[SourceTitle "playchess.com"]
[Source "ChessBase"]
[SourceQuality "1"]
[TimeControl "40/5400+30:1800+30"]

{[%evp 25,191,0,0,-10,-9,-8,0,0,34,35,35,35,38,34,35,0,0,0,4,1,21,0,0,0,0,-13,0,0,28,30,16,19,26,7,29,29,36,37,41,35,45,29,44,0,0,0,77,77,75,76,62,49,66,59,61,62,176,173,175,175,174,173,140,140,140,142,140,133,133,139,185,177,192,188,183,157,190,186,205,204,202,193,200,190,187,144,234,187,356,354,345,345,314,296,268,200,192,191,192,185,174,0,141,143,133,114,119,44,44,45,356,340,356,8,8,8,43,0,0,0,0,0,43,43,44,43,400,43,400,43,400,393,393,385,378,378,378,371,371,360,338,331,323,308,306,0,0,0,0,0,0,0,81,0,0,0,0,0,0,0,7,0,8,0,0,0,0,0]} 1. e4 {[%emt 0:00:03]} c5 {[%emt 0:00:09]} 2. Nf3 {[%emt 0:00:02][%cal Bg1f3,Bf3d4,Bd4b5,Bb5a3,Ba3c2][%mdl 32]} Nc6 {[%emt 0:00:07]} 3. d4 {[%emt 0:00:08]} cxd4 {[%emt 0:00:23]} 4. Nxd4 {[%emt 0:00:01]} e5 {[%emt 0:01:24]} 5. Nb5 {[%emt 0:01:25]} d6 {[%emt 0:00:05]} 6. N1c3 {[%emt 0:03:46]} a6 {[%emt 0:00:44]} 7. Na3 {[%emt 0:00:01]} Nf6 {[%emt 0:03:01]} 8. Bg5 {[%emt 0:01:04]} b5 {[%emt 0:18:54]} 9. Nd5 {[%emt 0:00:01]} Be7 {[%emt 0:00:36]} 10. Bxf6 {[%emt 0:00:02]} Bxf6 {[%emt 0:00:18]} 11. c3 {[%emt 0:00:02]} O-O {[%emt 0:00:36]} 12. Nc2 {[%emt 0:00:59]} Bg5 {[%emt 0:04:27] 12...Rb8 injects fresh life into this line.} 13. Nce3 {[%emt 0:05:52]} Be6 {[%emt 0:03:22]} 14. g3 {[%emt 0:10:16] B33: Sicilian: Pelikan and Sveshnikov Variations.} Ne7 {[%emt 0:05:12]} 15. Bg2 {[%emt 0:00:55]} Nxd5 {[%emt 0:04:09]} 16. Nxd5 {[%emt 0:00:30]} Bxd5 {[%emt 0:01:43]} 17. Qxd5 {[%emt 0:00:17]} Qb6 {[%emt 0:07:26]} 18. O-O {[%emt 0:00:27]} Rac8 {[%emt 0:01:29] [#]} 19. Rad1 $146 {[%emt 0:06:02]} ({Predecessor:} 19. Rfd1 Be7 20. h4 Qc5 21. Bf1 Qxd5 22. Rxd5 Rc5 23. Rad1 Rxd5 24. Rxd5 Rb8 25. b3 {1-0 (38) Bordi,K (2163)-Martinez Leon,F Tarragona 2003}) 19... Be7 {[%emt 0:00:36]} 20. Kh1 {[%emt 0:04:04]} b4 {[%emt 0:04:19]} 21. Qb3 {[%emt 0:05:04]} Rb8 {[%emt 0:04:35]} 22. c4 {[%emt 0:11:30]} a5 {[%emt 0:02:27]} 23. f4 {[%emt 0:05:54]} Bf6 {[%emt 0:06:53]} 24. Rd5 {[%emt 0:04:08]} Rbc8 {[%emt 0:05:27]} 25. Qc2 {[%emt 0:03:30]} Qa6 {[%emt 0:03:39]} 26. b3 {[%emt 0:01:50]} a4 {[%emt 0:01:03]} 27. Rfd1 {[%emt 0:03:19]} axb3 {[%emt 0:00:14]} 28. axb3 {[%emt 0:00:02]} Rc6 {[%emt 0:01:51]} 29. Bf1 {[%emt 0:06:38][%cal Bg2f1,Bf1c4,Bc4f7][%mdl 32]} h6 {[%emt 0:04:09]} 30. c5 {[%emt 0:02:59]} Qa7 {[%emt 0:00:36]} 31. Rxd6 {[%emt 0:00:22]} Rxc5 {[%emt 0:00:12]} 32. Bc4 {[%emt 0:00:02]} Rc7 {[%emt 0:02:53]} 33. Qd2 {[%emt 0:02:46]} Kh7 {[%emt 0:03:03]} 34. Rd7 {[%emt 0:07:15]} Rxd7 {[%emt 0:00:36]} 35. Qxd7 {[%emt 0:00:02]} Qf2 {[%emt 0:00:55]} (35... Qe3 $11) 36. Rf1 $16 {[%emt 0:00:44] Active counter play!} Qb2 {[%emt 0:09:44]} 37. Bxf7 {[%emt 0:03:51]} exf4 {[%emt 0:00:30]} 38. gxf4 {[%emt 0:04:03]} Qe2 {[%emt 0:00:55][%cal Re2f1]} 39. Qf5+ {[%emt 0:00:27]} Kh8 {[%emt 0:00:04][%cal Re2f1]} 40. Bc4 $36 {[%emt 0:00:00][%mdl 2048] White has good play.} Qe3 {[%emt 0:00:00]} (40... Qc2 $14) 41. e5 $18 {[%emt 0:04:40]} Be7 {[%emt 0:00:59]} 42. Qd3 {[%emt 0:02:56]} Bc5 {[%emt 0:05:56]} 43. Qxe3 {[%emt 0:00:25]} Bxe3 {[%emt 0:00:03][%mdl 4096] Endgame KRB-KRB} 44. f5 {[%emt 0:00:06]} Bd4 {[%emt 0:00:59]} 45. e6 {[%emt 0:00:18] Strongly threatening e7.} Bf6 {[%emt 0:01:02]} 46. Kg2 {[%emt 0:01:24]} Kh7 {[%emt 0:00:35]} 47. Kf3 {[%emt 0:04:25]} g6 {[%emt 0:00:43]} (47... h5 $16 48. Ke4 Rd8) 48. Ke4 {[%emt 0:00:55]} gxf5+ {[%emt 0:00:39]} 49. Rxf5 {[%emt 0:00:19]} Be7 {[%emt 0:00:33]} 50. Ra5 {[%emt 0:01:53]} Kg7 {[%emt 0:01:18]} 51. Ke5 {[%emt 0:04:36]} Bf6+ {[%emt 0:00:44]} 52. Kd6 {[%emt 0:01:11]} Rd8+ {[%emt 0:01:05]} 53. Kc6 {[%emt 0:00:05] Ra7+ is the strong threat.} Rc8+ {[%emt 0:05:52]} 54. Kb7 {[%emt 0:00:55]} Rd8 {[%emt 0:02:55]} 55. Ra7 {[%emt 0:01:24] Threatens to win with Kc6+.} Be7 {[%emt 0:00:36]} (55... Kf8 $16 56. Kc7 Re8) 56. Ra2 {[%emt 0:01:54]} Rf8 $2 {[%emt 0:06:41]} (56... Bf6 {was necessary.} 57. Re2 Be7) 57. Rg2+ {[%emt 0:01:23]} Kf6 {[%emt 0:00:04]} 58. Kc6 {[%emt 0:01:16]} Rc8+ {[%emt 0:01:16]} 59. Kd7 $1 {[%emt 0:00:15]} Rd8+ {[%emt 0:00:02]} 60. Kc7 $1 {[%emt 0:00:02]} Rf8 {[%emt 0:00:27]} 61. h4 {[%emt 0:04:23] And now h5 would win.} h5 {[%emt 0:02:12]} 62. Rg5 {[%emt 0:00:42]} Rh8 {[%emt 0:00:11]} 63. Rg2 {[%emt 0:03:44]} Rf8 $1 {[%emt 0:00:27]} 64. Rg1 {[%emt 0:00:33]} Rh8 {[%emt 0:04:14]} 65. Rf1+ {[%emt 0:00:24]} Ke5 {[%emt 0:00:05]} 66. Kd7 {[%emt 0:02:09]} (66. Rh1 $16) 66... Bxh4 $14 {[%emt 0:00:21]} 67. e7 {[%emt 0:00:33]} Bxe7 $2 {[%emt 0:00:16][%mdl 8192]} 68. Kxe7 {[%emt 0:00:02] KRB-KR} h4 {[%emt 0:00:44][%cal Bh5h4,Bh4h3,Bh3h2][%mdl 32]} 69. Kd7 $2 {[%emt 0:03:51]} (69. Re1+ $18 Kf4 70. Bd5) 69... h3 $11 {[%emt 0:01:41]} 70. Kc6 {[%emt 0:00:54] Black must now prevent Kc5.} Kd4 {[%emt 0:01:47]} 71. Kb5 {[%emt 0:02:15]} h2 {[%emt 0:00:56]} 72. Rh1 {[%emt 0:00:01]} Kc3 {[%emt 0:00:33]} 73. Kc5 {[%emt 0:02:13]} Rh4 {[%emt 0:01:37]} 74. Kd5 {[%emt 0:01:34]} Kd2 {[%emt 0:00:34]} 75. Ke5 {[%emt 0:01:16]} Kc3 $2 {[%emt 0:00:21][%mdl 8192] [#]} (75... Ke3 $14) 76. Bf7 $2 {[%emt 0:00:49]} (76. Kf5 $1 $18 Kd4 77. Kg5) 76... Kb2 $2 {[%emt 0:00:29][%mdl 8192] [#]} (76... Kd3 $14) 77. Bd5 $2 {[%emt 0:01:08]} ({Only move:} 77. Kf5 $1 $18) 77... Rh3 $2 {[%emt 0:00:38][%mdl 8192]} ({Better is} 77... Kc3 $14) 78. Kd4 {[%emt 0:00:10]} Rh4+ {[%emt 0:00:34]} 79. Kd3 {[%emt 0:00:08]} Rh5 {[%emt 0:00:20]} 80. Bc4 {[%emt 0:00:31]} Rh4 {[%emt 0:00:13]} 81. Kd2 {[%emt 0:00:37]} Rh5 {[%emt 0:00:13]} 82. Ke2 {[%emt 0:01:07]} Rh6 {[%emt 0:01:08]} 83. Ke3 {[%emt 0:01:23]} Rh5 {[%emt 0:00:29]} 84. Kd4 {[%emt 0:00:04]} Rh4+ {[%emt 0:00:10]} 85. Kc5 $2 {[%emt 0:00:07]} ({White must play} 85. Kd3 $18 {aiming for Ke2.} Rh3+ 86. Ke4) 85... Kc3 {[%emt 0:00:26]} 86. Kb5 {[%emt 0:00:40]} Rh5+ {[%emt 0:00:55]} 87. Ka4 $1 {[%emt 0:00:07]} Rh7 {[%emt 0:00:35]} 88. Bd5 {[%emt 0:00:13]} Rh5 {[%emt 0:00:34]} (88... Ra7+ $11 {keeps the balance.} 89. Kb5 Rh7) 89. Bc4 {[%emt 0:01:56]} ({White should play} 89. Bg2 $16) 89... Rh4 {[%emt 0:00:22] The position is equal.} 90. Kb5 {[%emt 0:00:28]} Rh5+ {[%emt 0:00:11]} 91. Kc6 {[%emt 0:00:01]} Kd4 {[%emt 0:00:46]} 92. Rd1+ {[%emt 0:00:07]} Kc3 {[%emt 0:00:25]} 93. Rh1 {[%emt 0:00:14]} Kd4 {[%emt 0:00:10]} 94. Kd6 {[%emt 0:00:19]} Rh6+ {[%emt 0:00:24]} 95. Be6 {[%emt 0:00:19]} Rh5 {[%emt 0:01:44]} 96. Ke7 {[%emt 0:00:13] Black escapes into a draw.  Weighted Error Value: White=0.06 (flawless) /Black=0.17 (very precise)} 1/2-1/2

[Event "Prague Festival-Futures 2022"]
[Site "Prague"]
[Date "2022.06.15"]
[Round "7.3"]
[White "Warchol, Kamil"]
[Black "Peglau, Charis"]
[Result "1-0"]
[ECO "C10"]
[WhiteElo "2079"]
[BlackElo "2008"]
[Annotator "NA RC"]
[PlyCount "117"]
[EventDate "2022.06.07"]
[EventType "tourn"]
[EventCountry "CZE"]
[SourceTitle "playchess.com"]
[Source "ChessBase"]
[SourceQuality "1"]
[TimeControl "40/5400+30:1800+30"]

1. e4 {[%emt 0:00:07]} e6 {[%emt 0:00:05]} 2. d4 {[%emt 0:00:13]} d5 {[%emt 0:00:05]} 3. Nd2 {[%emt 0:00:04]} dxe4 {[%emt 0:00:06]} 4. Nxe4 {[%emt 0:00:07]} Bd7 {[%emt 0:00:03]} 5. Nf3 {[%emt 0:03:17]} Bc6 {[%emt 0:00:08]} 6. Bd3 {[%emt 0:03:06]} Nd7 {[%emt 0:00:24]} 7. O-O {[%emt 0:01:26]} Ngf6 {[%emt 0:00:19]} 8. Ng3 {[%emt 0:00:16]} g6 {[%emt 0:00:43]} 9. Bd2 {[%emt 0:21:04]} Bg7 {[%emt 0:00:37]} 10. Bb4 {[%emt 0:01:03]} Bf8 {[%emt 0:01:47]} 11. Bd2 {[%emt 0:05:59]} Bg7 {[%emt 0:00:04]} 12. Qe2 {[%emt 0:00:46]} O-O {[%emt 0:00:18]} 13. c4 {[%emt 0:20:32]} Bxf3 {[%emt 0:00:49]} 14. Qxf3 {[%emt 0:00:18]} c6 {[%emt 0:00:05]} 15. Bc3 {[%emt 0:01:33]} Rc8 {[%emt 0:06:26]} 16. Rfe1 {[%emt 0:03:57]} Qc7 {[%emt 0:03:10]} 17. Rad1 {[%emt 0:04:25]} Rfd8 {[%emt 0:02:09]} 18. Bf1 {[%emt 0:02:55]} a6 {[%emt 0:03:59]} 19. b3 {[%emt 0:01:55]} h6 {[%emt 0:05:32]} 20. h3 {[%emt 0:02:22]} Nh7 {[%emt 0:08:20]} 21. h4 {[%emt 0:04:14]} Ndf6 {[%emt 0:05:42]} 22. Ne2 {[%emt 0:03:12]} g5 {[%emt 0:06:27]} 23. hxg5 {[%emt 0:00:41]} Nxg5 {[%emt 0:00:19]} 24. Qg3 {[%emt 0:00:17]} Qxg3 {[%emt 0:01:02]} 25. Nxg3 {[%emt 0:00:03]} Rd7 {[%emt 0:03:02]} 26. f3 {[%emt 0:03:40]} b6 {[%emt 0:15:06]} 27. f4 {[%emt 0:04:48]} Ngh7 {[%emt 0:01:21]} 28. Be2 {[%emt 0:05:08]} c5 {[%emt 0:13:06]} 29. dxc5 {[%emt 0:02:01]} bxc5 {[%emt 0:01:19]} 30. Rxd7 {[%emt 0:02:00]} Nxd7 {[%emt 0:00:08]} 31. Bxg7 {[%emt 0:00:06]} Kxg7 {[%emt 0:00:06]} 32. Rd1 {[%emt 0:00:03]} Nb8 {[%emt 0:03:38]} 33. Rd6 {[%emt 0:01:17]} Nf6 {[%emt 0:05:16]} 34. Bf3 {[%emt 0:00:48]} Rc7 {[%emt 0:03:05]} 35. f5 {[%emt 0:01:36]} e5 {[%emt 0:06:37]} 36. Rb6 {[%emt 0:00:15]} Rc8 {[%emt 0:02:41]} 37. Kf2 {[%emt 0:00:59]} e4 {[%emt 0:03:55]} 38. Nxe4 {[%emt 0:00:21]} Nxe4+ {[%emt 0:00:28]} 39. Bxe4 {[%emt 0:00:02]} Rd8 {[%emt 0:00:29]} 40. Bd5 {[%emt 0:00:00]} h5 {[%emt 0:00:00]} 41. g3 {[%emt 0:04:16]} f6 {[%emt 0:04:03]} 42. a3 {[%emt 0:07:17]} Re8 {[%emt 0:04:14]} 43. Rd6 {[%emt 0:03:21]} Rf8 {[%emt 0:02:24]} 44. b4 {[%emt 0:03:02]} cxb4 {[%emt 0:00:32]} 45. axb4 {[%emt 0:00:06]} Kh6 {[%emt 0:00:19]} 46. Be6 {[%emt 0:02:25]} Kg5 {[%emt 0:00:36]} 47. c5 {[%emt 0:00:49]} Re8 {[%emt 0:00:53]} 48. c6 {[%emt 0:04:25]} Nxc6 {[%emt 0:00:06]} 49. Rxc6 {[%emt 0:00:08]} Rb8 {[%emt 0:00:39]} 50. Rxa6 {[%emt 0:06:46]} Rxb4 {[%emt 0:00:12]} 51. Kf3 {[%emt 0:00:22]} h4 {[%emt 0:01:28]} 52. Ra8 {[%emt 0:01:07]} hxg3 {[%emt 0:01:38]} 53. Rg8+ {[%emt 0:00:14]} Kh4 {[%emt 0:00:44]} 54. Rh8+ {[%emt 0:00:03]} Kg5 {[%emt 0:00:10]} 55. Kxg3 {[%emt 0:00:41]} Rg4+ {[%emt 0:01:40]} 56. Kf3 {[%emt 0:00:55]} Rf4+ {[%emt 0:00:06]} 57. Ke3 {[%emt 0:00:12]} Ra4 {[%emt 0:01:37]} 58. Rg8+ {[%emt 0:00:14]} Kh5 {[%emt 0:00:43]} 59. Rg6 {[%emt 0:00:21]} 1-0